bitfinex-derivatives/quotes_SOLF0:USTF0_20250221
["timestamp","ask_amount","ask_price","bid_price","bid_amount"]
[1740124681064,5.6889,175.74,175.73,0.03892277]
[1740124685169,15.72130676,175.75,175.73,0.03892277]
[1740124685472,10.03270676,175.75,175.73,0.03892277]
[1740124685665,5.6889,175.74,175.73,0.03892277]
[1740124685867,10.03270676,175.75,175.73,0.03892277]
[1740124686471,15.72140676,175.75,175.73,0.03892277]
[1740124690770,5.6889,175.74,175.73,0.03892277]
[1740124691768,10.03270676,175.75,175.73,0.03892277]
[1740124695878,10.03270676,175.75,175.73,5.72812277]
[1740124696674,10.03270676,175.75,175.73,0.03892277]
[1740124697177,10.03270676,175.75,175.73,5.72792277]
[1740124697679,10.03270676,175.75,175.73,0.03892277]
[1740124697880,10.03270676,175.75,175.74,5.6889]
[1740124699181,10.03270676,175.75,175.73,0.03892277]
[1740124700482,10.03270676,175.75,175.73,5.72812277]
[1740124700879,10.03270676,175.75,175.73,0.03892277]
[1740124701083,15.72150676,175.75,175.73,0.03892277]
[1740124701288,10.03270676,175.75,175.73,0.03892277]
[1740124701581,15.72140676,175.75,175.73,0.03892277]
[1740124701984,10.03270676,175.75,175.73,0.03892277]
[1740124702284,5.6889,175.74,175.73,0.03892277]
[1740124707282,15.72130676,175.75,175.73,0.03892277]
[1740124708282,10.03270676,175.75,175.74,5.6889]
[1740124708485,10.07410881,175.76,175.73,0.03892277]
[1740124708888,10.07410881,175.76,175.75,5.6886]
[1740124710791,10.07410881,175.76,175.74,5.6888]
[1740124713291,10.07410881,175.76,175.73,5.72812277]
[1740124714393,15.76240881,175.76,175.73,5.72812277]
[1740124715494,15.76240881,175.76,175.73,0.03892277]
[1740124716193,10.07410881,175.76,175.74,5.6889]
[1740124716392,10.07410881,175.76,175.73,0.03892277]
[1740124716888,10.07410881,175.76,175.73,5.72812277]
[1740124718092,10.07410881,175.76,175.73,0.03892277]
[1740124718901,5.6888,175.75,175.73,0.03892277]
[1740124719692,10.07410881,175.76,175.73,0.03892277]
[1740124719896,15.76250881,175.76,175.73,0.03892277]
[1740124720190,10.07410881,175.76,175.73,0.03892277]
[1740124721796,10.07410881,175.76,175.74,5.6889]
[1740124721999,10.07410881,175.76,175.73,0.03892277]
[1740124722487,10.07410881,175.76,175.74,5.6889]
[1740124722687,0.04140205,175.76,175.74,10.03270676]
[1740124722897,10.45750935,175.83,175.74,10.03270676]
[1740124723100,10.45750935,175.83,175.82,5.6863]
[1740124723489,159.01270676,175.86,175.79,10.03270676]
[1740124723989,159.01270676,175.86,175.81,0.03733626]
[1740124724194,0.0381426,175.84,175.81,0.03733626]
[1740124725998,0.0381426,175.84,175.81,10.07004302]
[1740124727095,10.03270676,175.88,175.83,10.03270676]
[1740124728093,10.03270676,175.88,175.81,10.07004302]
[1740124728299,0.03935493,175.87,175.81,10.07004302]
[1740124728698,5.6851,175.86,175.81,10.07004302]
[1740124728898,10.03270676,175.86,175.81,10.07004302]
[1740124729295,10.03270676,175.86,175.81,0.03733626]
[1740124729797,5.686,175.83,175.81,0.03733626]
[1740124730996,10.03270676,175.84,175.81,0.03733626]
[1740124731199,15.71840676,175.84,175.81,0.03733626]
[1740124732805,10.03270676,175.84,175.81,0.03733626]
[1740124733807,10.03270676,175.84,175.81,5.72383626]
[1740124734296,10.03270676,175.84,175.81,0.03733626]
[1740124735195,15.71850676,175.84,175.81,0.03733626]
[1740124738303,10.03270676,175.84,175.81,5.72373626]
[1740124739209,10.03270676,175.84,175.81,0.03733626]
[1740124740304,10.03270676,175.84,175.81,5.72373626]
[1740124743212,10.03270676,175.84,175.81,0.03733626]
[1740124744807,10.03270676,175.84,175.81,5.72383626]
[1740124746213,10.03270676,175.84,175.81,0.03733626]
[1740124748417,15.71840676,175.84,175.81,0.03733626]
[1740124749717,10.03270676,175.84,175.81,0.03733626]
[1740124751516,15.71860676,175.84,175.81,0.03733626]
[1740124752315,10.03270676,175.84,175.81,0.03733626]
[1740124756726,10.03270676,175.84,175.81,5.72383626]
[1740124759030,10.03270676,175.84,175.82,5.6862]
[1740124767229,10.03270676,175.84,175.82,5.6863]
[1740124768337,10.03270676,175.84,175.81,0.03733626]
[1740124768734,10.03270676,175.84,175.82,5.6861]
[1740124768935,10.03270676,175.84,175.81,0.03733626]
[1740124770241,10.03270676,175.84,175.81,5.72393626]
[1740124770434,10.03270676,175.82,175.81,0.03733626]
[1740124773935,0.0381625,175.83,175.82,5.6863]
[1740124783443,10.41019721,175.92,175.82,10.03270676]
[1740124783738,10.41019721,175.92,175.89,10.03270676]
[1740124784048,13.47270676,175.96,175.89,10.03270676]
[1740124784249,19.15470676,175.96,175.89,10.03270676]
[1740124784546,0.03995495,175.94,175.91,0.03793325]
[1740124786543,0.03995495,175.94,175.92,5.6831]
[1740124786739,0.03995495,175.94,175.91,0.03793325]
[1740124787147,0.03995495,175.94,175.91,5.72133325]
[1740124788237,10.07266171,175.94,175.91,0.03793325]
[1740124789649,15.75536171,175.94,175.91,0.03793325]
[1740124790547,10.07266171,175.94,175.91,0.03793325]
[1740124790751,15.71580676,175.92,175.91,0.03793325]
[1740124791851,10.03270676,175.92,175.91,0.03793325]
[1740124792751,10.07266171,175.94,175.91,0.03793325]
[1740124792952,0.03995495,175.94,175.91,0.03793325]
[1740124793552,0.03995495,175.94,175.92,5.6831]
[1740124794052,0.03995495,175.94,175.91,0.03793325]
[1740124794253,0.03995495,175.94,175.93,5.6828]
[1740124796750,0.03995495,175.94,175.92,5.683]
[1740124797959,10.03270676,175.93,175.91,0.03793325]
[1740124799259,5.6831,175.92,175.91,0.03793325]
[1740124799456,10.03270676,175.93,175.91,0.03793325]
[1740124799858,5.6831,175.92,175.91,0.03793325]
[1740124804562,0.03995495,175.94,175.91,0.03793325]
[1740124805262,5.6831,175.92,175.91,0.03793325]
[1740124806653,5.6828,175.93,175.91,0.03793325]
[1740124806965,0.03995495,175.94,175.91,0.03793325]
[1740124808363,0.03995495,175.94,175.91,5.72133325]
[1740124808660,0.03995495,175.94,175.93,5.6828]
[1740124809964,0.03995495,175.94,175.91,5.72113325]
[1740124810156,0.03995495,175.94,175.91,0.03793325]
[1740124810767,1.7987,176.01,175.91,0.03793325]
[1740124811067,193.0,176.02,175.91,0.03793325]
[1740124811365,5.6803,176.01,175.96,5.6816]
[1740124811566,193.0,176.02,175.92,3.3801]
[1740124812069,0.04225445,175.99,175.95,0.03596205]
[1740124813069,0.04225445,175.99,175.98,5.6812]
[1740124813367,7.4747,176.06,176.0,5.6803]
[1740124813564,1.7958,176.06,175.92,3.3801]
[1740124814269,0.04003136,176.01,175.97,0.03911962]
[1740124815669,0.04003136,176.01,175.99,5.6808]
[1740124817371,0.04003136,176.01,175.97,0.03911962]
[1740124817572,0.04003136,176.01,176.0,5.6805]
[1740124817874,0.04003136,176.01,175.97,0.03911962]
[1740124818070,0.04003136,176.01,175.98,5.6811]
[1740124818572,5.6805,176.0,175.97,0.03911962]
[1740124818870,0.04003136,176.01,175.97,0.03911962]
[1740124819268,5.72033136,176.01,175.97,5.72051962]
[1740124819969,0.04003136,176.01,175.97,5.72051962]
[1740124820172,0.04003136,176.01,175.98,5.6811]
[1740124820477,0.04003136,176.01,175.97,0.03911962]
[1740124820773,0.04003136,176.01,176.0,5.6805]
[1740124822272,1.8227,176.14,175.97,0.03911962]
[1740124822471,0.94240822,176.13,175.93,18.8759]
[1740124822973,1.7614,176.12,175.93,18.8759]
[1740124823574,0.03622085,176.04,176.01,0.0402164]
[1740124823876,1.7614,176.12,175.93,18.8759]
[1740124824071,5.6773,176.1,176.01,0.04325209]
[1740124824274,193.0,176.14,175.99,7.42]
[1740124824472,193.0,176.14,176.0,3.6467]
[1740124824673,193.0,176.14,176.05,5.6788]
[1740124824972,5.2311,176.19,176.0,3.6467]
[1740124825277,0.9420534,176.18,176.0,3.6467]
[1740124825480,0.9420534,176.18,176.08,0.03766897]
[1740124825778,5.6774,176.1,176.08,0.03766897]
[1740124826171,5.6776,176.09,176.08,0.03766897]
[1740124827777,5.6774,176.1,176.08,0.03766897]
[1740124833684,5.2311,176.19,176.08,0.03766897]
[1740124833987,5.2311,176.19,176.12,0.0426109]
[1740124834181,5.2311,176.19,176.01,1.755]
[1740124834382,5.2311,176.19,176.14,0.03845819]
[1740124834580,5.2311,176.19,176.1,5.6771]
[1740124834782,5.6759,176.15,176.1,5.6771]
[1740124834981,5.2311,176.19,176.13,0.03617593]
[1740124835280,5.6759,176.15,176.13,0.03617593]
[1740124837583,5.2311,176.19,176.13,0.03617593]
[1740124837584,0.76186396,176.2,176.13,0.03617593]
[1740124838488,6.43626396,176.2,176.14,5.6758]
[1740124838788,0.76186396,176.2,176.14,5.6758]
[1740124839192,0.76186396,176.2,176.13,0.03617593]
[1740124839684,5.3386,176.28,176.13,0.03617593]
[1740124839889,8.36170865,176.27,176.12,5.6763]
[1740124840087,0.94170865,176.26,176.19,0.04231164]
[1740124841489,5.6741,176.2,176.19,0.04231164]
[1740124842889,5.6741,176.2,176.19,1.164e-05]
[1740124844390,0.0423,176.21,176.19,1.164e-05]
[1740124844591,5.7162,176.21,176.19,1.164e-05]
[1740124845085,0.0423,176.21,176.19,1.164e-05]
[1740124845986,0.0423,176.21,176.2,5.6741]
[1740124846393,0.0423,176.21,176.19,1.164e-05]
[1740124849497,5.7161,176.21,176.19,1.164e-05]
[1740124849794,0.0423,176.21,176.19,1.164e-05]
[1740124851088,5.7162,176.21,176.19,1.164e-05]
[1740124853898,0.0423,176.21,176.19,1.164e-05]
[1740124855196,5.7163,176.21,176.19,1.164e-05]
[1740124856401,0.0423,176.21,176.19,1.164e-05]
[1740124856600,5.6741,176.2,176.19,1.164e-05]
[1740124857602,5.7161,176.21,176.19,1.164e-05]
[1740124859011,0.0423,176.21,176.19,5.67441164]
[1740124860209,0.0423,176.21,176.2,5.6741]
[1740124860410,0.0423,176.21,176.19,1.164e-05]
[1740124861506,0.0423,176.21,176.19,5.67431164]
[1740124861706,0.0423,176.21,176.19,1.164e-05]
[1740124863009,0.0423,176.21,176.2,5.6741]
[1740124864610,193.0,176.31,176.19,1.164e-05]
[1740124864909,5.6714,176.29,176.13,23.00377563]
[1740124865105,148.68,176.32,176.13,23.00377563]
[1740124865311,154.3505,176.32,176.13,24.13930052]
[1740124865514,7.42,176.38,176.14,1.13546042]
[1740124865708,0.94091645,176.37,176.28,5.6713]
[1740124865909,7.42,176.38,176.28,5.6713]
[1740124866113,7.42,176.38,176.31,0.0424486]
[1740124866312,5.6701,176.33,176.31,0.0424486]
[1740124867012,5.67,176.33,176.31,0.0424486]
[1740124867205,7.42,176.38,176.31,0.0424486]
[1740124868312,5.6702,176.32,176.31,0.0424486]
[1740124870109,7.42,176.38,176.21,13.81252367]
[1740124870310,1.8165,176.31,176.21,13.81252367]
[1740124870507,1.8232,176.3,176.21,13.81252367]
[1740124870712,1.8232,176.3,176.16,1.7588]
[1740124871112,1.8232,176.3,176.18,5.6744]
[1740124871313,0.0389136,176.25,176.21,0.04002987]
[1740124871719,5.6734,176.22,176.21,0.04002987]
[1740124872112,1.8165,176.24,176.15,7.89899018]
[1740124872312,194.7236,176.23,176.15,7.89899018]
[1740124872512,1.7236,176.23,176.15,7.89899018]
[1740124872714,1.7236,176.23,176.1,9.64169018]
[1740124873120,148.54,176.28,176.1,9.64169018]
[1740124873314,0.03741167,176.18,176.15,0.03583179]
[1740124873816,0.03959117,176.18,176.15,0.03937965]
[1740124875521,5.71429117,176.18,176.15,0.03937965]
[1740124876319,0.03959117,176.18,176.15,0.03937965]
[1740124876922,5.71439117,176.18,176.15,0.03937965]
[1740124877224,0.03959117,176.18,176.15,0.03937965]
[1740124877719,5.71429117,176.18,176.15,0.03937965]
[1740124877920,0.03959117,176.18,176.15,0.03937965]
[1740124878313,5.6754,176.16,176.15,0.03937965]
[1740124879717,1.8011,176.17,176.04,1.8466]
[1740124879914,5.6771,176.11,176.06,5.6783]
[1740124880320,5.6773,176.1,176.06,5.6783]
[1740124880523,5.6773,176.1,176.04,1.8466]
[1740124880823,0.03744191,176.09,176.05,0.04149528]
[1740124881222,0.03744191,176.09,176.08,5.6779]
[1740124884118,0.03744191,176.09,176.07,5.6781]
[1740124884324,0.03744191,176.09,176.05,0.04149528]
[1740124885429,5.6782,176.08,176.05,0.04149528]
[1740124886333,5.6783,176.07,176.05,0.04149528]
[1740124887025,5.6786,176.06,176.05,0.04149528]
[1740124887725,5.678,176.08,176.05,0.04149528]
[1740124887931,0.03744191,176.09,176.05,0.04149528]
[1740124889034,0.03744191,176.09,176.06,5.6783]
[1740124890534,0.03744191,176.09,176.05,0.04149528]
[1740124891231,0.03744191,176.09,176.08,5.6779]
[1740124892931,0.03744191,176.09,176.06,5.6785]
[1740124893329,0.03744191,176.09,176.05,0.04149528]
[1740124893526,0.03744191,176.09,176.05,5.72029528]
[1740124894030,5.6783,176.07,176.05,0.04149528]
[1740124894432,0.03744191,176.09,176.05,0.04149528]
[1740124895129,5.6782,176.08,176.05,0.04149528]
[1740124896235,0.03744191,176.09,176.05,0.04149528]
[1740124897635,5.6785,176.07,176.05,0.04149528]
[1740124899535,0.03744191,176.09,176.05,0.04149528]
[1740124900336,0.03744191,176.09,176.06,5.6784]
[1740124900837,5.71504191,176.09,176.06,5.6784]
[1740124901038,0.03744191,176.09,176.06,5.6784]
[1740124901736,0.03744191,176.09,176.05,0.04149528]
[1740124902438,0.03744191,176.09,176.08,5.6779]
[1740124906236,1.8011,176.17,176.06,3.5211]
[1740124906543,11.025,176.22,176.06,3.5211]
[1740124906743,5.675,176.18,176.06,3.5211]
[1740124906939,5.675,176.18,176.13,5.6761]
[1740124907345,0.03643188,176.17,176.14,0.03849907]
[1740124908242,0.03643188,176.17,176.14,5.71439907]
[1740124909344,0.03643188,176.17,176.14,0.03849907]
[1740124910045,0.03643188,176.17,176.16,5.6754]
[1740124913839,0.82819251,176.23,176.16,5.6754]
[1740124914037,0.82819251,176.23,176.15,3.5142]
[1740124914236,6.50139251,176.23,176.15,3.5142]
[1740124914640,0.82819251,176.23,176.18,5.6744]
[1740124915048,0.04139385,176.22,176.19,0.04176909]
[1740124915747,0.04139385,176.22,176.2,5.6738]
[1740124916243,0.04139385,176.22,176.21,5.6737]
[1740124916541,5.2317,176.31,176.19,0.04176909]
[1740124916847,5.2317,176.31,176.15,3.5142]
[1740124917750,3.5567,176.31,176.21,0.03881541]
[1740124918851,3.5567,176.31,176.23,5.673]
[1740124919250,3.5567,176.31,176.25,0.03979105]
[1740124920058,5.6714,176.29,176.25,0.03979105]
[1740124920953,5.6713,176.29,176.25,0.03979105]
[1740124921258,2.52640423,176.35,176.25,0.03979105]
[1740124921459,4.32970423,176.35,176.25,0.03979105]
[1740124921653,4.32970423,176.35,176.26,5.6721]
[1740124922259,4.32970423,176.35,176.29,0.03882088]
[1740124922450,5.6708,176.31,176.29,0.03882088]
[1740124922651,4.32970423,176.35,176.29,0.03882088]
[1740124923056,5.6706,176.31,176.29,0.03882088]
[1740124923650,5.6709,176.3,176.29,0.03882088]
[1740124931568,5.6708,176.31,176.29,0.03882088]
[1740124931865,4.32970423,176.35,176.29,0.03882088]
[1740124931866,3.4807,176.35,176.29,0.03882088]
[1740124932067,5.6693,176.35,176.31,5.6704]
[1740124932267,7.42,176.43,176.29,0.03882088]
[1740124932462,0.9406325,176.42,176.23,1.81]
[1740124932767,5.6686,176.37,176.34,0.03798604]
[1740124933266,5.6692,176.35,176.34,0.03798604]
[1740124934465,5.6691,176.36,176.34,0.03798604]
[1740124935468,5.3771,176.45,176.34,0.03798604]
[1740124935666,0.94057478,176.44,176.23,1.81]
[1740124935867,0.94057478,176.44,176.38,0.04351956]
[1740124936067,0.94057478,176.44,176.23,1.81]
[1740124936470,12.7771,176.45,176.32,0.03604961]
[1740124936770,0.94053398,176.44,176.23,1.81]
[1740124936973,0.94053398,176.44,176.37,0.04264292]
[1740124937172,5.6692,176.36,176.32,0.04110289]
[1740124937369,12.7771,176.45,176.23,1.81]
[1740124937672,0.94056796,176.44,176.32,0.04036283]
[1740124937868,0.94056796,176.44,176.3,5.6706]
[1740124938171,0.94056796,176.44,176.36,0.03736797]
[1740124938571,5.6686,176.37,176.36,0.03736797]
[1740124940069,12.7771,176.45,176.23,1.81]
[1740124940070,5.6706,176.31,176.23,1.81]
[1740124940270,12.7771,176.45,176.23,1.81]
[1740124940569,0.94070497,176.44,176.31,5.6704]
[1740124940769,5.6693,176.35,176.23,1.81]
[1740124941166,5.6697,176.34,176.27,0.03631551]
[1740124941370,12.7771,176.45,176.23,1.81]
[1740124941571,0.03904951,176.32,176.29,0.03688273]
[1740124941766,0.94063203,176.43,176.23,1.81]
[1740124942375,5.3771,176.45,176.24,1.13481615]
[1740124942872,5.3771,176.45,176.33,5.70618127]
[1740124943068,5.3771,176.45,176.24,1.13481615]
[1740124943263,5.3771,176.45,176.37,0.04070383]
[1740124943467,5.3771,176.45,176.24,1.13481615]
[1740124943665,0.94045343,176.44,176.39,2.339e-05]
[1740124943864,0.94045343,176.44,176.24,1.13481615]
[1740124944064,5.6705,176.31,176.24,1.13481615]
[1740124944264,193.0,176.43,176.24,1.13481615]
[1740124944576,193.94066682,176.42,176.24,1.13481615]
[1740124944873,0.03772988,176.35,176.32,0.04082646]
[1740124945076,5.6699,176.33,176.32,0.04082646]
[1740124947468,0.03692162,176.35,176.32,0.04082646]
[1740124948177,5.70642162,176.35,176.32,0.04082646]
[1740124950374,5.6697,176.34,176.32,0.04082646]
[1740124952878,5.70622162,176.35,176.32,0.04082646]
[1740124953278,0.03692162,176.35,176.32,0.04082646]
[1740124953678,0.03692162,176.35,176.32,5.71102646]
[1740124954885,5.70622162,176.35,176.32,5.71102646]
[1740124955483,0.03692162,176.35,176.32,5.71082646]
[1740124955685,0.03692162,176.35,176.32,0.04082646]
[1740124955987,0.03692162,176.35,176.32,10.04250451]
[1740124956186,0.03692162,176.35,176.33,5.6699]
[1740124956583,0.03692162,176.35,176.32,10.04250451]
[1740124956779,0.03692162,176.35,176.34,5.6696]
[1740124957590,0.03692162,176.35,176.34,15.67127805]
[1740124958090,10.00167805,176.4,176.37,5.6684]
[1740124959090,10.00167805,176.4,176.37,5.70779307]
[1740124959893,10.00167805,176.4,176.37,0.03939307]
[1740124960694,15.66957805,176.4,176.37,0.03939307]
[1740124962194,15.66957805,176.4,176.37,5.70799307]
[1740124962394,5.6674,176.41,176.37,0.03939307]
[1740124963290,3.6494,176.45,176.38,10.00167805]
[1740124963495,10.00167805,176.44,176.38,10.00167805]
[1740124963897,5.667,176.42,176.38,10.00167805]
[1740124964291,10.00167805,176.44,176.38,10.00167805]
[1740124964591,5.6667,176.43,176.39,5.6679]
[1740124964790,10.00167805,176.44,176.38,10.00167805]
[1740124964991,15.66827805,176.44,176.4,5.6676]
[1740124965295,10.00167805,176.46,176.4,10.00167805]
[1740124965492,10.00167805,176.46,176.41,5.6671]
[1740124965687,10.00167805,176.46,176.41,5.70341203]
[1740124965994,10.00167805,176.46,176.41,0.03631203]
[1740124966194,5.6665,176.44,176.41,0.03631203]
[1740124969197,10.00167805,176.44,176.41,0.03631203]
[1740124970298,5.667,176.42,176.41,0.03631203]
[1740124971691,10.00167805,176.44,176.41,0.03631203]
[1740124971994,5.6669,176.43,176.41,0.03631203]
[1740124975692,10.00167805,176.44,176.41,0.03631203]
[1740124975894,15.66837805,176.44,176.41,0.03631203]
[1740124976498,15.66807805,176.44,176.41,5.70351203]
[1740124976693,15.66807805,176.44,176.41,0.03631203]
[1740124978401,5.6668,176.43,176.41,0.03631203]
[1740124982801,5.6666,176.44,176.41,0.03631203]
[1740124983294,10.00167805,176.46,176.41,0.03631203]
[1740124983491,5.6667,176.43,176.41,0.03631203]
[1740124984201,10.00167805,176.46,176.41,0.03631203]
[1740124984398,5.6666,176.44,176.41,0.03631203]
[1740124985200,10.00167805,176.46,176.41,0.03631203]
[1740124985703,5.6662,176.45,176.41,5.70341203]
[1740124986099,5.6662,176.45,176.41,0.03631203]
[1740124986298,5.6662,176.45,176.41,5.70341203]
[1740124986601,5.6662,176.45,176.41,0.03631203]
[1740124987406,5.6662,176.45,176.42,5.6669]
[1740124987602,10.00167805,176.46,176.41,0.03631203]
[1740124987802,5.6654,176.47,176.42,10.00167805]
[1740124988203,10.00167805,176.48,176.43,5.6666]
[1740124988403,5.6657,176.46,176.42,10.00167805]
[1740124988908,10.00167805,176.48,176.42,10.00167805]
[1740124989106,10.00167805,176.48,176.42,15.66857805]
[1740124989307,10.00167805,176.46,176.41,0.03631203]
[1740124989808,5.6665,176.44,176.41,0.03631203]
[1740124991403,5.6667,176.43,176.41,0.03631203]
[1740124994610,10.00167805,176.46,176.41,0.03631203]
[1740124994810,5.6664,176.44,176.41,0.03631203]
[1740124995812,10.00167805,176.48,176.41,15.70509008]
[1740124996711,5.666,176.46,176.41,15.70509008]
[1740124996915,5.666,176.46,176.41,10.03799008]
[1740124997108,5.666,176.46,176.42,5.6669]
[1740124999615,5.666,176.46,176.41,10.03799008]
[1740124999616,10.00167805,176.48,176.41,10.03799008]
[1740124999814,10.00167805,176.48,176.41,15.70529008]
[1740124999815,5.6663,176.45,176.41,15.70529008]
[1740125001412,10.00167805,176.48,176.41,15.70529008]
[1740125001611,5.6664,176.44,176.41,15.70529008]
[1740125001813,10.00167805,176.48,176.41,10.03799008]
[1740125002112,10.00167805,176.48,176.42,5.6669]
[1740125002313,10.00167805,176.48,176.41,10.03799008]
[1740125002614,5.666,176.45,176.41,15.70499008]
[1740125002916,10.00167805,176.48,176.41,10.03799008]
[1740125003117,5.6658,176.46,176.42,5.6667]
[1740125003519,5.6658,176.46,176.41,10.03799008]
[1740125004215,16.33426634,176.52,176.45,10.00167805]
[1740125004407,12.0827329,176.52,176.45,10.00167805]
[1740125004613,12.0827329,176.52,176.47,0.03772646]
[1740125004816,5.6648,176.49,176.47,0.03772646]
[1740125005315,1.6882,176.52,176.47,0.03772646]
[1740125005721,5.6647,176.5,176.47,0.03772646]
[1740125005916,1.6882,176.52,176.47,0.03772646]
[1740125007818,5.665,176.49,176.47,0.03772646]
[1740125008122,1.6882,176.52,176.47,0.03772646]
[1740125008515,5.6648,176.49,176.47,10.03940451]
[1740125009017,1.6882,176.52,176.47,10.03940451]
[1740125009319,10.00167805,176.55,176.49,10.00167805]
[1740125009720,5.6641,176.52,176.5,0.04181491]
[1740125010616,5.6635,176.53,176.5,0.04181491]
[1740125010922,16.47525116,176.56,176.51,10.00167805]
[1740125010923,10.42641107,176.56,176.51,10.00167805]
[1740125011113,10.00167805,176.62,176.54,10.00167805]
[1740125011318,3.5013,176.65,176.61,10.00167805]
[1740125011713,1.7955,176.66,176.63,10.00167805]
[1740125011918,236.30149364,176.67,176.65,10.00167805]
[1740125014120,246.30317169,176.67,176.62,10.00167805]
[1740125014320,10.00167805,176.65,176.61,0.03698888]
[1740125014522,236.30149364,176.67,176.62,10.00167805]
[1740125014717,5.6596,176.65,176.64,10.00167805]
[1740125015027,10.00167805,176.67,176.62,10.00167805]
[1740125015824,1.794,176.68,176.62,10.00167805]
[1740125016423,10.00167805,176.71,176.64,10.00167805]
[1740125016627,5.659,176.67,176.66,10.00167805]
[1740125016817,5.659,176.67,176.66,10.04026894]
[1740125017420,5.659,176.67,176.66,0.03859089]
[1740125017625,3.5387,176.73,176.66,10.04026894]
[1740125017824,3.5387,176.73,176.68,10.00167805]
[1740125018226,1.7125,176.77,176.7,10.00167805]
[1740125018421,10.94038077,176.76,176.7,10.00167805]
[1740125018722,5.6571,176.73,176.72,0.0407316]
[1740125018928,5.3256,176.77,176.67,15.56327363]
[1740125019127,0.93867086,176.76,176.71,0.03665346]
[1740125019631,5.6574,176.72,176.71,0.03665346]
[1740125026030,5.6574,176.72,176.71,5.346e-05]
[1740125029332,0.04298644,176.73,176.71,5.346e-05]
[1740125029531,5.70008644,176.73,176.71,5.346e-05]
[1740125029732,0.04298644,176.73,176.71,5.346e-05]
[1740125030134,5.6574,176.72,176.71,5.346e-05]
[1740125031130,159.5045,176.89,176.71,5.346e-05]
[1740125031334,8.3582654,176.88,176.73,15.56327363]
[1740125031635,5.6551,176.8,176.73,21.22027363]
[1740125032134,5.6551,176.8,176.73,15.56327363]
[1740125032431,15.56327363,176.85,176.75,0.04173077]
[1740125032628,0.93822875,176.84,176.75,0.04173077]
[1740125032934,5.6554,176.79,176.75,0.04173077]
[1740125034137,5.6555,176.78,176.75,0.04173077]
[1740125035042,3.5602,176.84,176.75,0.04173077]
[1740125035743,5.6555,176.78,176.75,0.04173077]
[1740125037448,5.6552,176.79,176.75,5.69803077]
[1740125037747,18.74,176.96,176.76,31.12654726]
[1740125038050,0.93779267,176.91,176.82,15.56327363]
[1740125038252,0.93779267,176.91,176.82,15.60289964]
[1740125038643,9.94454673,176.9,176.84,9.94454673]
[1740125039049,9.94454673,176.9,176.85,0.03684436]
[1740125039349,193.0,176.99,176.88,9.94454673]
[1740125039551,9.94454673,176.96,176.9,9.94454673]
[1740125039753,9.94454673,176.96,176.92,0.04238229]
[1740125040659,5.6507,176.93,176.92,0.04238229]
[1740125041450,5.6507,176.93,176.92,8.229e-05]
[1740125041648,15.53184597,176.94,176.83,15.53184597]
[1740125041855,15.53184597,176.91,176.8,15.53184597]
[1740125042350,15.53184597,176.91,176.77,17.31774597]
[1740125042557,15.53184597,176.88,176.77,15.53184597]
[1740125042753,5.6539,176.83,176.82,3.127e-05]
[1740125042955,15.53184597,176.85,176.74,15.53184597]
[1740125043255,1.6787,176.84,176.74,15.53184597]
[1740125043455,5.6552,176.79,176.74,15.53184597]
[1740125043856,0.04036246,176.78,176.75,0.03791244]
[1740125044057,5.69586246,176.78,176.75,0.03791244]
[1740125044653,0.04036246,176.78,176.75,0.03791244]
[1740125045561,5.6561,176.76,176.75,1.244e-05]
[1740125045760,0.04036246,176.78,176.73,7.7930491]
[1740125046158,7.50036246,176.78,176.72,23.37914731]
[1740125046361,7.50036246,176.78,176.68,23.37914731]
[1740125046557,7.46,176.78,176.68,23.37914731]
[1740125046758,5.658,176.7,176.68,23.37914731]
[1740125046957,0.03719945,176.75,176.68,23.37914731]
[1740125047158,0.03813691,176.71,176.68,23.37914731]
[1740125047354,5.6583,176.69,176.68,23.37914731]
[1740125047559,5.6583,176.69,176.68,23.41861191]
[1740125048762,5.6583,176.69,176.68,0.0394646]
[1740125050667,5.6583,176.69,176.68,6.46e-05]
[1740125052865,5.6611,176.61,176.57,46.95512904]
[1740125053864,1.8334,176.65,176.56,1.721]
[1740125054065,0.0379521,176.61,176.57,0.0423368]
[1740125054764,5.6619,176.58,176.57,0.0423368]
[1740125055963,15.56979807,176.61,176.5,5.6644]
[1740125056167,5.6629,176.55,176.49,15.53184597]
[1740125056366,15.53184597,176.58,176.49,15.53184597]
[1740125056969,5.6631,176.55,176.49,21.19654597]
[1740125057165,5.69931693,176.55,176.52,0.0410236]
[1740125058073,0.03621693,176.55,176.52,0.0410236]
[1740125058568,5.69931693,176.55,176.52,0.0410236]
[1740125058976,0.03621693,176.55,176.52,0.0410236]
[1740125059172,0.03621693,176.55,176.53,5.6632]
[1740125059469,0.03621693,176.55,176.52,0.0410236]